Cogmind - Beta 16.1 @@@ ROGUE MODE // 2026.03.07 @ 09:03:40 Player: KURIIRI Result: Self-destructed Performance ------------- Evolutions (5) 2500 Regions Visited (23) 4600 Robots Destroyed (362) 1810 Value Destroyed (14784) 14784 Prototype IDs (71) 1420 Alien Tech Used (0) 0 Bonus (8347) 8347 TOTAL SCORE: 33461 Bonus ------- High Alert Combat Kills 3387 Follower Combat Kills 2848 Hunted by Unchained 500 Entered Garrisons 400 Network Hubs Disabled 400 Aligned with FarCom 300 Met Data Miner 300 Acquired ECA 300 Built Enhanced Grunts 300 A7 Reached Mainframe 300 Met R17 at Cetus 500 Friendly Fire -1188 Cogmind --------- Core Integrity 910/1000 Matter 300/300 Energy 310/310 System Corruption 5% Temperature Cool (0) Movement Treading (200) Ox1 Location -5/Factory Parts ------- > --- POWER (1) -------- Fission Core > --- PROPULSION (6) --- Armored Medium Treads Heavy Treads Wheel > --- UTILITY (7) ------ High-capacity Storage Unit Advanced Salvage Targeting Computer Improved Medium Armor Plating Improved Medium Armor Plating Improved System Shield Improved System Shield > --- WEAPON (3) ------- Proton Cannon Heavy Flak Cannon Impact Mace > --- INVENTORY (20) --- Light Fission Core Light Fission Core Quantum Reactor Combat Airjet Advanced Heat Sink Advanced Heat Sink Improved Energy Well (400) Improved Energy Well (400) Improved Matter Compressor (300) Centrium Medium Armor Plating Improved Shield Generator Improved Hacking Suite System Restoration Module Trap Reconfigurator Wave Gun Smartbomb Launcher Improved Datajack Peak State ------------ > --- POWER ------------ Angular Momentum Engine > --- PROPULSION ------- Centrium Heavy Treads Centrium Heavy Treads > --- UTILITY ---------- Advanced Heat Sink High-capacity Storage Unit Improved Salvage Targeting Computer Centrium Medium Armor Plating Centrium Medium Armor Plating Hacking Suite Improved System Shield > --- WEAPON ----------- Advanced Variable Charge Gun Light Antimatter Cannon Compact Tesla Bomb Launcher > --- INVENTORY -------- Quantum Reactor Centrium Heavy Treads Improved Energy Well Improved Matter Compressor Centrium Medium Armor Plating Centrium Medium Armor Plating Improved Shield Generator Improved Hacking Suite Improved System Shield Improved System Shield System Restoration Module Trap Reconfigurator Phase Cannon Improved Datajack Impact Mace [Rating: 111] Favorites ----------- Power Hybrid Deuterium Engine Engine Hybrid Deuterium Engine Power Core Enhanced Nuclear Core Propulsion Heavy Treads Treads Heavy Treads Leg Aluminum Leg Wheel Compact Wheel Hover Unit Combat Airjet Utility High-capacity Storage Unit Device Advanced Cooling System Storage High-capacity Storage Unit Processor Advanced Targeting Computer Hackware System Shield Protection Hardened Heavy Armor Plating Weapon Gatling Laser Energy Gun Gatling Laser Energy Cannon EM Pulse Cannon Ballistic Gun Precision Assault Rifle Ballistic Cannon Light Antimatter Cannon Launcher Compact Tesla Bomb Launcher Special Weapon Remote Datajack Impact Weapon Impact Mace Slashing Weapon Katana Special Melee Weapon Improved Datajack Build | -11 -10 -9 -9 -9 -8 -8 -8 -8 -7 -7 -7 -7 -7 -7 -7 -7 -6 -6 -6 -6 -6 -6 -5 ------- Run | Yrd Mat Mat Min Exi Min Mat Gar Mat Fac Was Fac Gar Fac Low Low Dat Pro Fac Ext Cet Arc Hub Fac Slots Evolved 10 | . . 2 . . . 2 . . 2 . . . . . . . . 2 . . . . 2 Power . | . . . . . . . . . . . . . . . . . . . . . . . . Propulsion 4 | . . . . . . 1 . . 1 . . . . . . . . . . . . . 2 Utility 5 | . . 2 . . . 1 . . . . . . . . . . . 2 . . . . . Weapon 1 | . . . . . . . . . 1 . . . . . . . . . . . . . . Parts Attached 170 | 3 6 18 4 . . 23 11 3 21 3 2 3 18 3 2 . 3 14 8 3 2 4 16 Power 9 | 1 . 1 . . . 2 1 1 1 . . . . . . . . . 1 . . . 1 Engine 6 | 1 . 1 . . . 1 1 1 . . . . . . . . . . 1 . . . . Core 3 | . . . . . . 1 . . 1 . . . . . . . . . . . . . 1 Reactor . | . . . . . . . . . . . . . . . . . . . . . . . . Propulsion 33 | . 2 4 2 . . 2 4 1 2 2 . . 2 . . . 1 3 1 1 . 2 4 Treads 20 | . . 3 . . . 1 3 . . 2 . . 1 . . . 1 3 1 1 . 2 2 Leg . | . . . . . . . . . . . . . . . . . . . . . . . . Wheel 10 | . 2 1 2 . . 1 1 1 1 . . . . . . . . . . . . . 1 Hover 3 | . . . . . . . . . 1 . . . 1 . . . . . . . . . 1 Flight . | . . . . . . . . . . . . . . . . . . . . . . . . Utility 72 | 1 1 8 1 . . 11 3 . 6 . 1 2 9 2 2 . 1 8 4 2 1 1 8 Device 23 | 1 . 2 . . . 5 1 . 1 . . 1 5 2 . . . 3 1 . . . 1 Storage 5 | . 1 2 . . . 1 . . . . . . . . . . . . 1 . . . . Processor 14 | . . 3 . . . 2 . . 1 . . 1 1 . 1 . . 2 1 . . . 2 Hackware 9 | . . . . . . 1 1 . . . . . 1 . 1 . . 2 . . 1 . 2 Protection 21 | . . 1 1 . . 2 1 . 4 . 1 . 2 . . . 1 1 1 2 . 1 3 Artifact . | . . . . . . . . . . . . . . . . . . . . . . . . Weapon 56 | 1 3 5 1 . . 8 3 1 12 1 1 1 7 1 . . 1 3 2 . 1 1 3 Energy Gun 18 | . 2 1 . . . 4 . . 3 . 1 1 3 1 . . . . . . . 1 1 Energy Cannon 11 | . . 1 . . . . 3 . 1 1 . . 1 . . . 1 1 . . 1 . 1 Ballistic Gun 10 | 1 . 1 . . . 2 . . 6 . . . . . . . . . . . . . . Ballistic Cannon 4 | . . . . . . . . . . . . . 1 . . . . 1 1 . . . 1 Launcher 7 | . . 1 1 . . 2 . . 1 . . . 1 . . . . 1 . . . . . Special Weapon 1 | . . . . . . . . . . . . . 1 . . . . . . . . . . Impact Weapon 2 | . . 1 . . . . . . 1 . . . . . . . . . . . . . . Slashing Weapon 1 | . . . . . . . . 1 . . . . . . . . . . . . . . . Piercing Weapon . | . . . . . . . . . . . . . . . . . . . . . . . . Special Melee Weapon 2 | . 1 . . . . . . . . . . . . . . . . . 1 . . . . Unidentified Prototypes 26 | . 1 2 . . . 6 . . 6 1 . . 5 . . . 1 . 1 2 . 1 . Corrupted Parts 3 | . . . . . . . . . . . . . . . . . . . . . . 3 . System Corruption 29 | . . . . . . . . . . . . . . . . . . . . . . 29 . Parts Lost 47 | . . 2 . . . 5 1 . 4 . . . 8 . . . . 7 2 . . 14 4 Power 2 | . . . . . . 1 . . . . . . . . . . . . . . . 1 . Propulsion 12 | . . . . . . 3 1 . . . . . 1 . . . . 3 . . . 3 1 Utility 19 | . . 2 . . . 1 . . 2 . . . 3 . . . . 3 . . . 5 3 Weapon 14 | . . . . . . . . . 2 . . . 4 . . . . 1 2 . . 5 . Highest Loss Streak 12 | . . 1 . . . 1 1 . 2 . . . 7 . . . . 3 2 . . 12 2 To Critical Strikes . | . . . . . . . . . . . . . . . . . . . . . . . . Average Backups 16 | 6 7 13 13 14 13 15 19 19 18 18 17 16 16 18 18 18 18 14 13 18 18 17 11 Power . | 1 . . . 2 3 3 1 1 1 2 1 . . . . . . . . . 1 1 1 Propulsion 2 | 4 4 5 5 3 3 3 4 4 2 2 3 3 2 1 1 1 1 1 . 1 2 1 . Utility 6 | . . . 1 1 2 3 6 7 7 5 5 5 5 6 7 8 8 7 8 10 10 10 8 Weapon 5 | 1 2 5 6 7 5 4 5 5 4 7 6 7 7 10 9 9 9 5 3 4 3 2 . Tool/Special . | . . . . . . . . . . . . . . . . . . . . . . . . Unused Backups 63 | 4 3 2 . 1 . 3 3 5 5 5 1 . 7 2 . . 1 3 1 2 3 . 12 Power 10 | . 1 . . . . 1 2 1 . 1 1 . . . . . . . . . . . 3 Propulsion 8 | 2 . . . . . 1 . 3 . 1 . . . 1 . . . . . . . . . Utility 26 | 1 . 1 . . . 1 1 1 4 3 . . . . . . 1 1 1 1 2 . 8 Weapon 18 | 1 2 1 . 1 . . . . 1 . . . 7 . . . . 2 . 1 1 . 1 Tool/Special 1 | . . . . . . . . . . . . . . 1 . . . . . . . . . Average Slot Usage (%) 84 | . 100 94 100 77 98 97 97 90 87 84 80 76 81 76 76 76 75 79 85 83 86 83 64 Engine 6 | . 14 11 11 11 11 7 9 9 . . 5 7 7 7 7 7 7 6 6 6 6 5 . Treads 11 | . . 8 17 . . 6 22 6 . 4 7 7 8 15 15 15 14 14 13 13 13 12 12 Wheel 6 | . 12 13 4 22 22 19 3 11 20 10 7 7 5 . . . . . . . . . 3 Device 6 | . 14 6 . . . 8 10 9 1 . . 2 6 7 7 7 7 13 6 . . . 2 Storage 7 | . 14 11 11 11 11 9 9 9 7 7 7 7 7 7 7 7 7 6 6 6 6 6 5 Processor 5 | . . 13 12 11 11 10 . . 5 7 7 4 . . . . . 1 15 13 13 11 3 Hackware 9 | . . . . . . 4 15 18 12 7 7 7 12 7 7 7 7 11 13 13 13 12 10 Protection 8 | . . 7 20 22 22 11 9 9 8 15 11 7 7 7 7 7 7 4 3 9 13 12 8 Energy Gun 9 | . 20 15 . . . 13 5 . 1 . 18 23 20 23 23 23 22 2 . . . . 1 Energy Cannon 3 | . . 1 11 . 9 . 10 16 4 . . . 1 . . . . 3 . . 4 4 3 Ballistic Gun 1 | . 4 1 9 . 9 1 . . 11 14 2 . . . . . . . . . . . . Ballistic Cannon 3 | . . . . . . . . . . . . . . . . . . 10 10 13 13 10 . Launcher 1 | . . . 1 . . . 1 . . . . . . . . . . 1 5 6 1 1 . Peak Build Rating 111 | 9 14 18 17 16 17 34 39 43 62 64 64 65 71 70 70 70 75 88 84 105 105 111 94 Average Rating 58 | 6 11 16 16 11 16 27 34 38 48 61 63 63 63 69 69 70 70 80 79 97 103 100 69 On Entrance 50 | 6 9 14 17 16 12 17 31 38 38 58 64 63 64 71 70 70 70 72 82 77 105 103 38 Avg Prop Armor Cover (%) 9 | . . 10 . . . 8 9 9 . 10 9 8 10 . . . . . . . . . 13 Naked Turns . | . . . . . . . . . . . . . . . . . . . . . . . . Heaviest Build 102 | 14 22 39 41 33 40 68 67 68 71 69 79 81 81 81 81 81 81 102 75 82 85 85 83 Greatest Support 160 | 20 32 40 40 32 32 48 62 44 60 56 28 28 140 140 140 140 140 140 140 150 150 160 150 Greatest Overweight (x) 8 | . 1 2 1 1 1 2 4 2 1 2 2 2 2 . . . 1 1 . . . . 8 Average Overweight (x) . | . . 1 . 1 1 . 1 1 . 1 2 2 1 . . . . . . . . . 1 Largest Inventory Capacity 20 | 8 10 15 15 15 15 20 20 20 20 20 20 20 20 20 20 20 20 20 20 20 20 20 20 Average Capacity 19 | 8 9 14 15 15 15 16 20 20 20 20 20 20 20 20 20 20 20 20 20 20 20 20 20 Most Carried 20 | 8 9 15 14 15 14 20 20 20 20 20 20 20 20 20 20 20 20 20 20 20 20 20 18 Average Carried 17 | 6 7 13 13 14 13 15 19 19 18 19 19 19 18 19 19 20 19 16 14 19 19 19 12 Final Capacity 20 | 8 10 15 15 15 15 20 20 20 20 20 20 20 20 20 20 20 20 20 20 20 20 20 20 Final Carried 20 | 7 8 13 14 15 13 20 20 19 20 20 20 19 20 20 20 20 20 13 20 20 20 12 18 Class Distribution -------------------- 26% | Tank 23% | Mutant 15% | Hacker-Mutant 12% | Hacker-Tank 6% | Commander-Tank 4% | Scavenger-Mutant 3% | Scavenger-Tank Dominant Class ---------------- Mutant | -10/Materials Mutant | -9/Materials Mutant | -9/Mines Mutant | -9/Exiles Mutant | -8/Mines Mutant | -8/Materials Hacker-Mutant | -8/Garrison Hacker-Mutant | -8/Materials Hacker-Skirmisher | -7/Factory Mutant | -7/Waste Tank | -7/Factory Tank | -7/Garrison Hacker-Tank | -7/Factory Tank | -7/Lower Caves Tank | -7/Lower Caves Tank | -7/Data Miner Tank | -6/Proximity Caves Hacker-Tank | -6/Factory Hacker-Tank | -6/Extension Commander-Tank | -6/Cetus Commander-Tank | -6/Archives Scavenger-Tank | -6/Hub_04(d) Scavenger-Mutant | -5/Factory Resources | -11 -10 -9 -9 -9 -8 -8 -8 -8 -7 -7 -7 -7 -7 -7 -7 -7 -6 -6 -6 -6 -6 -6 -5 ----------- Run | Yrd Mat Mat Min Exi Min Mat Gar Mat Fac Was Fac Gar Fac Low Low Dat Pro Fac Ext Cet Arc Hub Fac Matter Collected 7075 | 251 114 329 10 . 42 768 376 70 634 140 88 142 346 77 20 . 60 1345 996 170 104 476 517 Remotely . | . . . . . . . . . . . . . . . . . . . . . . . . Salvage Created 15541 | 212 201 942 27 . 42 1370 1194 1179 846 . 788 1223 1095 435 208 . 351 2253 929 609 186 809 642 Parts 694 | 13 9 47 . . 1 59 65 55 40 . 45 53 54 18 7 . 10 103 35 22 13 21 24 Haulers Intercepted 27 | . . 4 . . . 4 . 3 2 . 2 . 3 . . . . 2 5 . . 2 . Recyclers Shooed 8 | . . . . . . 1 . . . . . . 1 . . . . 3 . . . . 3 Parts Field Recycled . | . . . . . . . . . . . . . . . . . . . . . . . . Retrieved Matter . | . . . . . . . . . . . . . . . . . . . . . . . . Parts Self-Destructed 47 | . . . . . . . . . . . . . . 20 7 . 20 . . . . . . Prevented . | . . . . . . . . . . . . . . . . . . . . . . . . Parts Restored . | . . . . . . . . . . . . . . . . . . . . . . . . Kills | -11 -10 -9 -9 -9 -8 -8 -8 -8 -7 -7 -7 -7 -7 -7 -7 -7 -6 -6 -6 -6 -6 -6 -5 ------- Run | Yrd Mat Mat Min Exi Min Mat Gar Mat Fac Was Fac Gar Fac Low Low Dat Pro Fac Ext Cet Arc Hub Fac Combat Hostiles Destroyed 257 | . 5 19 4 . 1 27 26 13 11 . 10 24 16 8 4 . 5 39 17 7 . 10 11 Melee 12 | . . 2 . . 1 3 . 1 2 . . . . . . . . 1 . . . . 2 Guns 93 | . 5 4 . . . 14 6 . 7 . 8 16 8 8 4 . 5 8 . . . . . Cannons 61 | . . . 1 . . . 5 10 1 . 1 . . . . . . 20 10 1 . 7 5 AOE 66 | . . 9 3 . . 10 15 2 . . 1 4 6 . . . . 8 6 1 . 1 . Classes Destroyed 21 | 2 2 8 1 . 1 1 1 . 1 . . 2 1 . . . . . 1 . . . . Worker 10 | . . 1 . . . 1 . 2 1 . . . 1 . . . . 3 . . . 1 . Builder 8 | . . 1 . . . . . . . . 1 . 1 . . . . 2 1 . . 1 1 Tunneler 10 | 5 . . . . . 2 . . . . . . . . . . . 2 . . . . 1 Hauler 27 | . . 4 . . . 4 . 3 2 . 2 . 3 . . . . 2 5 . . 2 . Recycler 13 | 1 . 1 . . . 3 . 1 . . 1 . 3 . . . . 2 . . . . 1 Mechanic 2 | . . . . . . 1 . . . . . . . . . . . 1 . . . . . Operator 8 | . 1 . . . . . . . . . . . . . . . . 2 1 . 4 . . Watcher 27 | . . 4 . . . 3 . 5 5 . 1 . 1 . . . . 3 2 2 . . 1 Swarmer 58 | . . 7 . . . 11 8 . 3 . 2 3 . . . . 2 10 8 . . . 4 Cutter 3 | . . . . . . . 3 . . . . . . . . . . . . . . . . Saboteur 1 | . . . . . . . . . . . . 1 . . . . . . . . . . . Grunt 95 | . 5 7 . . . 9 10 6 2 . 5 12 2 7 2 . 1 18 2 . . 7 . Brawler 2 | . . 1 . . . . . . . . . . . . 1 . . . . . . . . Duelist 6 | . . 1 . . . . . 1 . . . . . . . . . 2 1 . . 1 . Protector 2 | . . . . . . . . . . . . . 2 . . . . . . . . . . Sentry 40 | . . 3 . . . 5 5 6 3 . 2 4 1 1 1 . 1 3 3 . . 1 1 Specialist 4 | . . . . . . . . . . . . 3 1 . . . . . . . . . . Hunter 19 | . . . . . 1 2 . . . . . 1 6 . . . . 3 2 . . . 4 Programmer 15 | . . . . . . . . . 3 . 1 . 4 . . . 1 3 . . . 1 2 Behemoth 1 | . . . . . . . . . . . . . . . . . . . 1 . . . . Cetus Guard 7 | . . . . . . . . . . . . . . . . . . . . 7 . . . Assembled 4 | . . . 4 . . . . . . . . . . . . . . . . . . . . Surgeon 1 | . . . . . . . . . . . . . . 1 . . . . . . . . . Thug 1 | . . . . . . . . . . . . . . . . . . . . . . 1 . Butcher 1 | . . . . . . . . . . . . . . . . . . . . . 1 . . Guerrilla 1 | . . . . . . . . . . . . . . . . . . . . . . 1 . Best Kill Streak 13 | 3 3 6 4 . 1 10 6 4 4 . 2 5 13 4 3 . 2 8 5 5 1 4 6 Combat Bots Only 11 | . 3 6 4 . 1 5 6 3 2 . 2 5 11 4 3 . 2 5 4 4 . 3 4 Max Kills in Single Turn 7 | 1 1 3 3 . 1 4 4 3 1 . 1 2 7 2 1 . 1 4 5 1 1 2 1 Gunslinging 1 | . . . . . . 1 . . . . . . . . . . . . . . . . . Exploded 6 | . . 3 3 . . 4 4 2 . . 1 2 6 . . . . 2 4 1 . 1 . Melee 1 | . . 1 . . 1 1 . 1 1 . . . . . . . . 1 . . . . 1 Uniques/NPCs Destroyed . | . . . . . . . . . . . . . . . . . . . . . . . . Combat | -11 -10 -9 -9 -9 -8 -8 -8 -8 -7 -7 -7 -7 -7 -7 -7 -7 -6 -6 -6 -6 -6 -6 -5 -------- Run | Yrd Mat Mat Min Exi Min Mat Gar Mat Fac Was Fac Gar Fac Low Low Dat Pro Fac Ext Cet Arc Hub Fac Hostile Shots Fired 1630 | . 20 68 18 . 6 105 54 26 103 . 51 80 214 37 15 . 42 313 91 15 6 262 104 Missed 493 | . 5 17 8 . . 32 20 8 36 . 16 29 75 10 7 . 15 87 31 9 2 58 28 Hits 1137 | . 15 51 10 . 6 73 34 18 67 . 35 51 139 27 8 . 27 226 60 6 4 204 76 Melee 9 | . . 2 2 . . . . . . . . . . . . . . 3 2 . . . . Projectile 1128 | . 15 49 8 . 6 73 34 18 67 . 35 51 139 27 8 . 27 223 58 6 4 204 76 AOE 3 | . . . . . . . 3 . . . . . . . . . . . . . . . . Critical Strikes 42 | . . 1 . . . 3 2 1 2 . . . 3 2 1 . . 9 . 1 . 16 1 Part Disruptions 2 | . . . 1 . . . . . . . . . . . . . . . . . . . 1 Damage Taken 18170 | . 160 674 216 . 98 1079 544 327 1105 . 414 651 1633 306 97 . 279 3607 408 80 92 4816 1584 Core 2054 | . 22 262 48 . 39 105 102 32 262 . 31 31 152 18 . . 45 177 40 12 21 565 90 Absorbed by Shields 396 | . . . . . . . . . . . . . . . . . . . 319 77 . . . Reduced by Siege Mode 199 | . . . . . . . . . . . . . . . . . . 68 1 . . 97 33 Redirected to Shielding 23 | . . . 23 . . . . . . . . . . . . . . . . . . . . Regen/Repaired (Parts) 2608 | . . 99 . . . 168 . 61 463 87 21 224 749 27 . . . 709 . . . . . Core Remaining (%) 47 | 100 91 . . . 12 . . 56 . . . . . . . . 23 . . . . 4 . Volleys Fired 829 | 21 19 48 8 . . 86 75 30 45 2 20 48 35 11 6 . 14 154 60 9 36 65 37 Largest 3 | 2 2 2 2 . . 2 2 2 3 2 3 3 3 3 3 . 3 3 2 2 2 3 2 Hottest 291 | 70 112 112 91 . . 122 126 126 165 56 165 165 215 240 240 . 240 240 102 102 102 291 119 Shots Fired 1496 | 41 38 88 11 . . 150 108 54 102 4 55 134 77 33 18 . 42 240 101 10 42 109 39 Gun 847 | 41 38 76 3 . . 137 56 . 83 4 53 134 75 33 18 . 42 34 . . . 18 2 Cannon 565 | . . 4 3 . . . 32 54 18 . 2 . 1 . . . . 189 94 2 42 87 37 Launcher 84 | . . 8 5 . . 13 20 . 1 . . . 1 . . . . 17 7 8 . 4 . Special . | . . . . . . . . . . . . . . . . . . . . . . . . Kinetic 482 | 21 14 4 3 . . 43 . . 74 4 2 . . . . . . 112 94 2 12 82 15 Thermal 542 | 20 24 76 3 . . 94 56 . . . 2 . 27 33 18 . 42 92 . . 30 23 2 Explosive 26 | . . 8 5 . . 13 . . . . . . . . . . . . . . . . . Electromagnetic 446 | . . . . . . . 52 54 28 . 51 134 50 . . . . 36 7 8 . 4 22 Robot Hit Streak 44 | 8 10 13 3 . . 34 27 26 13 8 11 44 29 16 11 . 18 23 34 35 42 11 10 Robot Miss Streak 6 | 3 1 4 2 . . 2 1 1 3 1 2 2 2 4 1 . 3 6 2 . 3 4 5 Penetration Max . | . . . . . . . . . . . . . . . . . . . . . . . . Secondary Targets 16 | . . . . . . 1 . . 1 . 1 6 1 2 1 . 2 1 . . . . . Max Gunslinging Chain 1 | . . . . . . 1 . . 1 . 1 1 1 1 1 . 1 1 . . . . . Shots Hit Robots 1081 | 21 27 63 3 . 3 132 57 45 79 3 37 87 55 25 15 . 34 135 121 1 34 58 46 Core Hits 601 | 8 9 30 6 . 1 53 43 26 28 . 21 40 49 29 14 . 29 90 39 17 11 36 22 Critical Kills 3 | . . . . . . . . . 1 . . . . . . . . . . . 1 . 1 Critical Parts Destroyed 15 | . . 3 . . . 2 . . 3 . . . . . . . . 1 1 . . . 5 Critical Strikes 69 | . 3 6 . . . 11 5 1 5 . 1 4 1 . . . . 6 8 . 2 7 9 Burn 19 | . 3 2 . . . 9 4 . . . . . . . . . . . . . . . 1 Meltdown 1 | . . . . . . . . . . . . . . . . . . . . . 1 . . Destroy 2 | . . . . . . . . . 2 . . . . . . . . . . . . . . Blast 19 | . . . . . . . . . . . . . . . . . . 4 7 . 1 7 . Corrupt 9 | . . . . . . . 1 . . . 1 4 1 . . . . 1 . . . . 1 Smash 17 | . . 4 . . . 2 . . 2 . . . . . . . . 1 1 . . . 7 Sever 2 | . . . . . . . . 1 1 . . . . . . . . . . . . . . Melee Attacks 201 | . 1 34 . . 3 26 8 13 29 . . . 4 . . . . 5 54 . . . 24 Impact 127 | . . 34 . . 3 26 8 . 16 . . . 4 . . . . 5 7 . . . 24 Slashing 26 | . . . . . . . . 13 13 . . . . . . . . . . . . . . Piercing . | . . . . . . . . . . . . . . . . . . . . . . . . Sneak Attacks 62 | . 1 2 . . . 5 . . 1 . . . . . . . . 1 49 . . . 3 Combat Hostiles . | . . . . . . . . . . . . . . . . . . . . . . . . Follow-up Attacks . | . . . . . . . . . . . . . . . . . . . . . . . . Damage Inflicted 37826 | 232 327 2251 271 . 137 3877 1990 1678 1873 50 888 2203 2651 640 422 . 873 6690 3624 1112 1231 2821 1985 Guns 12027 | 232 327 645 28 . . 2050 664 . 1185 50 765 1645 1354 640 422 . 873 758 . . . 363 26 Cannons 12782 | . . 81 42 . . . 499 1210 303 . 32 . 37 . . . . 3792 2748 35 1231 1808 964 Explosions 9578 | . . 665 201 . . 1014 827 302 98 . 91 558 1260 . . . . 1965 697 1077 . 629 194 Melee 3373 | . . 848 . . 137 813 . 166 287 . . . . . . . . 142 179 . . . 801 Ramming 66 | . . 12 . . . . . . . . . . . . . . . 33 . . . 21 . Kinetic 9825 | 84 83 14 28 . . 520 . . 1102 50 21 . . . . . . 2544 2748 35 409 1747 440 Thermal 10663 | 148 244 712 42 . . 1644 888 302 . . 123 558 682 640 422 . 873 2058 55 . 822 424 26 Explosive 3009 | . . 665 201 . . 900 . . . . . . 1049 . . . . . . . . . 194 Electromagnetic 10890 | . . . . . . . 1102 1210 484 . 744 1645 920 . . . . 1913 642 1077 . 629 524 Impact 3050 | . . 848 . . 137 813 . . 130 . . . . . . . . 142 179 . . . 801 Slashing 323 | . . . . . . . . 166 157 . . . . . . . . . . . . . . Piercing . | . . . . . . . . . . . . . . . . . . . . . . . . Highest Corruption 72 | . 1 . . . . . . . 3 3 3 3 4 1 . . . . . . . 72 5 Average Corruption 3 | . 1 . . . . . . . 2 3 3 3 2 1 . . . . . . . 33 4 Corruption Purged 5 | . . . . . . . . . . . . . 4 1 . . . . . . . . . Corruption Blocked . | . . . . . . . . . . . . . . . . . . . . . . . . Effects 98 | . . . . . . . . . 9 5 15 18 20 4 . . . . . . . 22 5 Message Errors 18 | . . . . . . . . . 3 3 5 3 2 1 . . . . . . . 1 . Matter Fused 24 | . . . . . . . . . 3 . . 8 7 1 . . . . . . . 5 . Heat Flow Errors 11 | . . . . . . . . . 1 . 3 . 4 1 . . . . . . . 2 . Energy Discharges 12 | . . . . . . . . . . . 3 3 5 . . . . . . . . . 1 Parts Rejected 2 | . . . . . . . . . . . . . . . . . . . . . . 1 1 Parts Fused 2 | . . . . . . . . . . . . 1 1 . . . . . . . . . . Data Loss (minor) 10 | . . . . . . . . . 2 1 3 2 . . . . . . . . . 2 . Data Loss (major) 5 | . . . . . . . . . . 1 1 . 1 1 . . . . . . . . 1 Misfires 1 | . . . . . . . . . . . . . . . . . . . . . . . 1 Alerts 2 | . . . . . . . . . . . . 1 . . . . . . . . . 1 . Misdirections 7 | . . . . . . . . . . . . . . . . . . . . . . 7 . Weapon Failures 4 | . . . . . . . . . . . . . . . . . . . . . . 3 1 Overload Shots 2 | . . . . . . . . . . . . . . . . . . . . . . 2 . Overflow Damage 1762 | . . 220 17 . . 341 23 50 108 . . . 49 . . . . 286 146 13 25 55 429 Projectiles 240 | . . . . . . . 12 21 7 . . . . . . . . 67 47 . 25 55 6 Explosions 449 | . . . 17 . . 116 11 29 11 . . . 49 . . . . 77 39 13 . . 87 Melee 1073 | . . 220 . . . 225 . . 90 . . . . . . . . 142 60 . . . 336 Knockbacks 88 | . . 3 . . . 2 . . . . . . . . . . . 26 13 . . 22 22 Impact 11 | . . 2 . . . 2 . . . . . . . . . . . . . . . . 7 Kinetic 69 | . . . . . . . . . . . . . . . . . . 26 11 . . 19 13 Secondary 8 | . . 1 . . . . . . . . . . . . . . . . 2 . . 3 2 Self-Inflicted Damage 798 | . . . 61 . . 64 44 62 . . . 28 40 . . . . 126 63 . . 114 196 Shots 25 | . . . 2 . . 4 3 2 . . . 1 1 . . . . 5 2 . . 3 2 Rammed 7 | . . 2 . . . . . . . . . . . . . . . 3 . . . 2 . Targets Rammed 9 | . . 2 . . . . . . . . . . . . . . . 5 . . . 2 . Kicked . | . . . . . . . . . . . . . . . . . . . . . . . . Crushed 2 | . . . . . . . . . . . . . . . . . . 2 . . . . . Highest Temperature 464 | 140 190 217 117 . . 357 141 171 464 . 306 405 410 390 266 . 116 397 30 21 306 318 204 Average Temperature 85 | 50 63 70 56 . . 104 28 44 86 . 102 109 157 131 120 . 54 91 9 10 96 73 72 Received Heat Transfer 3474 | . 90 252 100 . . 387 198 108 150 . 90 126 177 159 66 . 45 915 74 . . 519 18 Effects 14 | . . . . . . 2 . . 3 . . 3 1 . . . . 2 . . 1 2 . Energy Bleed 4 | . . . . . . 1 . . . . . 1 1 . . . . . . . 1 . . Interference 3 | . . . . . . . . . . . . . . . . . . 1 . . . 2 . Matter Decay 2 | . . . . . . . . . . . . 1 . . . . . 1 . . . . . Short Circuit 1 | . . . . . . 1 . . . . . . . . . . . . . . . . . Damage (minor) 1 | . . . . . . . . . . . . 1 . . . . . . . . . . . Damage (major) 3 | . . . . . . . . . 3 . . . . . . . . . . . . . . Siege Activations 9 | . . . . . . . . . . . . . . . . . . 4 2 . . 1 2 Total Turns 174 | . . . . . . . . . . . . . . . . . . 54 20 . . 70 30 Longest Duration 70 | . . . . . . . . . . . . . . . . . . 20 16 . . 70 28 Martial Activations . | . . . . . . . . . . . . . . . . . . . . . . . . Shielding Activations . | . . . . . . . . . . . . . . . . . . . . . . . . Robots Disrupted . | . . . . . . . . . . . . . . . . . . . . . . . . Combat Hostiles . | . . . . . . . . . . . . . . . . . . . . . . . . Robots Corrupted 31 | . . 4 . . . 2 . . 1 . 1 4 2 . . . . 3 2 5 . 2 5 Combat Hostiles 24 | . . 3 . . . . . . 1 . . 4 2 . . . . 2 1 5 . 2 4 Parts Fried 85 | . . 4 . . . 4 4 3 5 . 4 8 8 1 . . . 19 3 9 . 3 10 Impact Corruptions 35 | . . 9 . . . 9 . . 2 . . . . . . . . 3 1 . . . 11 Robots Melted 3 | . . 1 . . . 1 . . . . . . . . . . . . . . 1 . . Combat Hostiles 1 | . . 1 . . . . . . . . . . . . . . . . . . . . . Parts Melted 44 | 1 1 6 . . . 13 5 1 . . . . 2 4 3 . 1 4 . . 2 1 . Heat Transferred 19182 | 444 814 1665 74 . . 3787 1978 250 . . 87 650 1176 1400 925 . 1925 2568 . . 999 329 111 Parts Sabotaged . | . . . . . . . . . . . . . . . . . . . . . . . . Parts Stolen . | . . . . . . . . . . . . . . . . . . . . . . . . Parts Stripped . | . . . . . . . . . . . . . . . . . . . . . . . . Power Chain Reactions 17 | . . . . . . . 7 3 . . 1 4 1 . . . . . 1 . . . . Alert | -11 -10 -9 -9 -9 -8 -8 -8 -8 -7 -7 -7 -7 -7 -7 -7 -7 -6 -6 -6 -6 -6 -6 -5 ------- Run | Yrd Mat Mat Min Exi Min Mat Gar Mat Fac Was Fac Gar Fac Low Low Dat Pro Fac Ext Cet Arc Hub Fac Maximum Alert Level 5 | . . 1 . . . 2 4 2 . . 3 5 4 . . . . 4 4 3 2 4 2 Low Security (%) 33 | 100 100 56 100 . 100 50 . 49 100 100 27 . . . . . . 48 . . . 12 . Level 1 12 | . . 43 . . . 44 11 18 . . 14 . . . . . . 12 . . 32 11 15 Level 2 20 | . . . . . . 5 21 32 . . 45 6 . . . . . 1 61 18 67 20 84 Level 3 21 | . . . . . . . 50 . . . 13 12 48 . . . . 27 33 81 . 41 . Level 4 8 | . . . . . . . 16 . . . . 14 51 . . . . 10 4 . . 14 . Level 5 3 | . . . . . . . . . . . . 66 . . . . . . . . . . . High Security . | . . . . . . . . . . . . . . . . . . . . . . . . Max Security . | . . . . . . . . . . . . . . . . . . . . . . . . Peak Influence 2320 | 10 71 258 87 . 30 409 1306 636 101 33 903 2320 1274 . . . . 1286 1142 835 466 1218 556 Initial 1218 | . . 22 87 . . . 256 636 81 33 . 626 1218 . . . . 51 627 632 290 132 483 Average 533 | 1 10 161 21 . 9 196 814 306 36 6 440 1744 1059 . . . . 458 693 744 412 710 458 Influence Increases 14995 | 30 126 624 24 . 30 983 1060 579 555 . 1315 1854 1000 230 90 . 380 1960 1444 343 249 1636 483 Destroy 0b10 Robot/C 6600 | . 100 380 . . 20 540 520 260 220 . 480 780 380 160 80 . 260 780 680 160 80 500 220 Destroy 0b10 Robot/NC 645 | 30 5 55 . . . 70 10 55 40 . 40 . 75 . . . . 85 80 10 20 50 20 Destroy Leader 1214 | . 20 96 . . 10 134 30 106 94 . 106 40 102 10 10 . 50 160 66 . . 128 52 Allied During Kill 2743 | . . . . . . . . . . . 601 540 147 . . . 70 . 524 170 100 591 . Trap Triggered on 0b10 100 | . . . . . . . 10 20 10 . . . . . . . . 50 . . . . 10 Successful Hack 340 | . . 16 . . . 43 . 15 34 . 14 7 29 . . . . 110 46 . . . 26 Select Force Hacks 60 | . . . . . . 30 . . . . . . 30 . . . . . . . . . . Disable Machine 840 | . . 15 . . . 45 15 60 90 . 30 30 165 . . . . 135 15 . 45 165 30 Anti-Garrison Action 800 | . . . . . . . 300 . . . . 300 . . . . . 200 . . . . . Destroy Structure 963 | . 1 47 24 . . 106 115 18 52 . 44 142 42 . . . . 95 33 3 4 157 80 Partial Spotted 45 | . . . . . . 15 15 . . . . . . . . . . 15 . . . . . Lose Combat Pursuer 645 | . . 15 . . . . 45 45 15 . . 15 30 60 . . . 330 . . . 45 45 Influence Decreases 14461 | 30 73 451 246 4 30 589 148 1704 640 96 420 429 2056 967 617 . 297 761 1595 749 595 1027 937 Entered New Map 5459 | . . 31 139 4 . . 138 670 100 63 . 269 1102 469 101 . . 32 655 499 435 247 505 Time Decay 6787 | 30 73 410 107 . 30 539 . 434 505 33 320 . 474 498 516 . 277 669 670 230 140 440 392 Lost Part 445 | . . 10 . . . 50 10 . 35 . . . 80 . . . . 60 20 . . 140 40 Lost Ally 720 | . . . . . . . . . . . 100 160 100 . . . 20 . 100 20 20 200 . Purge Threat 1050 | . . . . . . . . 600 . . . . 300 . . . . . 150 . . . . Squads Dispatched 69 | . 2 1 . . . 4 . 1 5 . 7 . 4 . . . . 22 4 . . 12 7 Investigation 15 | . 1 1 . . . 3 . . . . 1 . 2 . . . . 3 . . . 1 3 Extermination 15 | . . . . . . . . . 3 . 1 . 2 . . . . 4 . . . 4 1 Reinforcement 20 | . 1 . . . . . . 1 2 . 2 . . . . . . 5 3 . . 4 2 Assault 6 | . . . . . . . . . . . . . . . . . . 4 1 . . . 1 Garrison 13 | . . . . . . 1 . . . . 3 . . . . . . 6 . . . 3 . Intercept . | . . . . . . . . . . . . . . . . . . . . . . . . Searches Triggered . | . . . . . . . . . . . . . . . . . . . . . . . . Data Miner Redirects 3 | . . . . . . . . . . . . . . . . . . 2 1 . . . . Construction Impeded 6 | . . . . . . . . . . . . . . . . . . 2 3 . . 1 . Haulers Reinforced 4 | . . . . . . . . . 2 . 1 . . . . . . . . . . 1 . Active Scanning Responses . | . . . . . . . . . . . . . . . . . . . . . . . . Cargo Convoy Interrupts 2 | . . . . . . . . . 1 . . . 1 . . . . . . . . . . Stealth | -11 -10 -9 -9 -9 -8 -8 -8 -8 -7 -7 -7 -7 -7 -7 -7 -7 -6 -6 -6 -6 -6 -6 -5 --------- Run | Yrd Mat Mat Min Exi Min Mat Gar Mat Fac Was Fac Gar Fac Low Low Dat Pro Fac Ext Cet Arc Hub Fac Distress Signals 17 | . . 3 1 . . 1 . 1 . . . . 1 . . . . 2 2 2 . 3 1 Communications Jammed . | . . . . . . . . . . . . . . . . . . . . . . . . Distress Signals . | . . . . . . . . . . . . . . . . . . . . . . . . Times Spotted 470 | . 7 28 20 . 1 35 28 20 21 . 23 38 28 8 4 . 14 75 31 9 22 36 22 Peak Tracking Total 19 | . 3 7 19 . 1 5 6 3 3 . 4 6 12 4 3 . 4 5 5 5 1 7 5 Tactical Retreats 31 | . . 1 2 . . . 2 2 1 . . 1 2 1 . . . 14 . . . 3 2 Traps | -11 -10 -9 -9 -9 -8 -8 -8 -8 -7 -7 -7 -7 -7 -7 -7 -7 -6 -6 -6 -6 -6 -6 -5 ------- Run | Yrd Mat Mat Min Exi Min Mat Gar Mat Fac Was Fac Gar Fac Low Low Dat Pro Fac Ext Cet Arc Hub Fac Traps Triggered 20 | . 1 1 . . . . 7 . 1 . . 4 2 . . . . . 1 . . 1 2 Indirectly 8 | . . . . . . . 6 . . . . . . . . . . . 1 . . 1 . Trap Hack Attempts 54 | . 48 . . . . . . . . . . . . . . . . . 6 . . . . Triggered . | . . . . . . . . . . . . . . . . . . . . . . . . Disarmed 1 | . 1 . . . . . . . . . . . . . . . . . . . . . . Reprogrammed 2 | . 2 . . . . . . . . . . . . . . . . . . . . . . Reused 10 | . . . . . . . 1 2 1 . . . . . . . . 5 . . . . 1 Traps Reconfigurated 37 | . . . . . . 4 3 4 13 . . . . . . . . 9 . . . 2 2 Traps Extracted . | . . . . . . . . . . . . . . . . . . . . . . . . Installed . | . . . . . . . . . . . . . . . . . . . . . . . . Triggered 10 | . . . . . . . 1 2 1 . . . . . . . . 5 . . . . 1 Machines | -11 -10 -9 -9 -9 -8 -8 -8 -8 -7 -7 -7 -7 -7 -7 -7 -7 -6 -6 -6 -6 -6 -6 -5 ---------- Run | Yrd Mat Mat Min Exi Min Mat Gar Mat Fac Was Fac Gar Fac Low Low Dat Pro Fac Ext Cet Arc Hub Fac Machines Disabled 69 | . . 1 . . . 3 4 4 6 . 2 9 11 . . . . 9 4 . 3 11 2 Max in Single Turn 5 | . . 1 . . . 2 1 1 2 . 1 2 2 . . . . 2 1 . 1 5 2 Garrison Access 5 | . . . . . . . . . 2 . . . 1 . . . . 1 . . . . 1 Garrison Relay 7 | . . . . . . . 2 . . . . 5 . . . . . . . . . . . Phase Generator 1 | . . . . . . . . . . . . 1 . . . . . . . . . . . Network Hub 2 | . . . . . . . . . . . . . . . . . . . . . . 2 . Machines Repaired . | . . . . . . . . . . . . . . . . . . . . . . . . Machines Dismantled . | . . . . . . . . . . . . . . . . . . . . . . . . Machines Sabotaged . | . . . . . . . . . . . . . . . . . . . . . . . . Overloaded Fab Kills . | . . . . . . . . . . . . . . . . . . . . . . . . Hacking | -11 -10 -9 -9 -9 -8 -8 -8 -8 -7 -7 -7 -7 -7 -7 -7 -7 -6 -6 -6 -6 -6 -6 -5 --------- Run | Yrd Mat Mat Min Exi Min Mat Gar Mat Fac Was Fac Gar Fac Low Low Dat Pro Fac Ext Cet Arc Hub Fac Machines Accessed 102 | . 1 4 . 2 . 15 4 10 12 . 7 1 9 . . 4 . 16 5 1 . 4 7 Terminals 56 | . . 3 . . . 8 4 6 6 . 4 1 5 . . . . 8 5 1 . 3 2 Fabricators 2 | . . . . . . . . . 1 . . . 1 . . . . . . . . . . Repair Stations 10 | . . 1 . . . 2 . 1 1 . . . 1 . . . . 3 . . . . 1 Recycling Units 8 | . 1 . . . . 2 . 2 . . . . . . . . . 1 . . . . 2 Scanalyzers 10 | . . . . . . 2 . 1 2 . 1 . 1 . . . . 2 . . . . 1 Garrison Access 10 | . . . . . . 1 . . 2 . 2 . 1 . . . . 2 . . . 1 1 Total Hacks 405 | . 4 13 . 5 . 56 8 67 43 . 14 3 39 . . 30 . 55 18 3 . 9 38 Successful 237 | . 1 7 . 5 . 38 3 39 23 . 4 1 31 . . 30 . 27 9 1 . . 18 Failed 166 | . 3 6 . . . 17 5 27 20 . 10 2 8 . . . . 28 9 2 . 9 20 Catastrophic 30 | . . 2 . . . 3 1 1 4 . 3 . 2 . . . . 5 1 1 . 3 4 Database Lockouts 2 | . . . . . . 1 . 1 . . . . . . . . . . . . . . . Manual 183 | . 4 8 . 1 . 28 3 42 22 . 5 . 18 . . . . 30 9 1 . 2 10 Terminals 225 | . . 8 . . . 28 8 47 24 . 9 3 22 . . . . 33 18 3 . 6 16 Fabricators 2 | . . . . . . . . . 1 . . . 1 . . . . . . . . . . Repair Stations 29 | . . 5 . . . 4 . 2 4 . . . 4 . . . . 9 . . . . 1 Recycling Units 31 | . 4 . . . . 6 . 12 . . . . . . . . . 2 . . . . 7 Scanalyzers 65 | . . . . . . 17 . 6 11 . 2 . 9 . . . . 7 . . . . 13 Garrison Access 18 | . . . . . . 1 . . 3 . 3 . 3 . . . . 4 . . . 3 1 Terminal Hacks 100 | . . 2 . 5 . 9 3 15 3 . . 1 11 . . 30 . 8 5 1 . . 7 Record 17 | . . . . 4 . 1 . . . . . . . . . 11 . 1 . . . . . Part Schematic 11 | . . . . . . . . . . . . . . . . 11 . . . . . . . Robot Schematic 5 | . . . . . . . . . . . . . . . . 5 . . . . . . . Robot Analysis 6 | . . . . . . 1 . 3 . . . . 1 . . . . . 1 . . . . Prototype ID Bank 11 | . . . . . . 2 . 2 . . . . 1 . . 3 . 2 1 . . . . Open Door 3 | . . . . . . . . . . . . 1 . . . . . 1 . 1 . . . Branch Access Points 3 | . . 1 . . . . . . 1 . . . 1 . . . . . . . . . . Emergency Access Points 1 | . . . . . . . 1 . . . . . . . . . . . . . . . . Terminal Index 5 | . . . . . . 1 . 1 1 . . . 1 . . . . 1 . . . . . Scanalyzer Index 2 | . . . . . . . . . . . . . 1 . . . . . . . . . 1 Alert Level 13 | . . . . . . 2 . 2 . . . . 1 . . . . 2 . . . . 6 Unreport Threat 7 | . . . . . . . . 4 . . . . 2 . . . . . 1 . . . . Locate Traps 8 | . . 1 . . . 1 . 2 1 . . . 1 . . . . . 2 . . . . Hauler Manifests 1 | . . . . . . . . . . . . . 1 . . . . . . . . . . Zone Layout 4 | . . . . . . 1 . 1 . . . . 1 . . . . 1 . . . . . Garrison Registry 1 | . . . . . . . 1 . . . . . . . . . . . . . . . . Patrol Navigation 1 | . . . . . . . 1 . . . . . . . . . . . . . . . . Proto ID Catalog 1 | . . . . 1 . . . . . . . . . . . . . . . . . . . Fabricator Hacks 1 | . . . . . . . . . . . . . 1 . . . . . . . . . . Network Status 1 | . . . . . . . . . . . . . 1 . . . . . . . . . . Repair Station Hacks 22 | . . 4 . . . 4 . 2 4 . . . 4 . . . . 3 . . . . 1 Scan Component 12 | . . 2 . . . 2 . 1 2 . . . 2 . . . . 2 . . . . 1 Repair 10 | . . 2 . . . 2 . 1 2 . . . 2 . . . . 1 . . . . . Recycling Unit Hacks 3 | . . . . . . . . 2 . . . . . . . . . . . . . . 1 Retrieve Matter 2 | . . . . . . . . 1 . . . . . . . . . . . . . . 1 Retrieve Components 1 | . . . . . . . . 1 . . . . . . . . . . . . . . . Scanalyzer 45 | . . . . . . 14 . 6 9 . 1 . 8 . . . . 3 . . . . 4 Insert Component 13 | . . . . . . 4 . 1 2 . . . 4 . . . . 1 . . . . 1 Analyze 13 | . . . . . . 5 . 1 3 . . . 4 . . . . . . . . . . Retrieve Study 19 | . . . . . . 5 . 4 4 . 1 . . . . . . 2 . . . . 3 Garrison Access Hacks 6 | . . . . . . 1 . . 2 . 1 . 1 . . . . . . . . . 1 Unlock Access 2 | . . . . . . 1 . . . . 1 . . . . . . . . . . . . Seal Access 4 | . . . . . . . . . 2 . . . 1 . . . . . . . . . 1 Unauthorized Hacks 60 | . 1 1 . . . 10 . 14 5 . 2 . 6 . . . . 13 4 . . . 4 Terminals 47 | . . 1 . . . 8 . 9 5 . 2 . 5 . . . . 10 4 . . . 3 Assimilate 4 | . . 1 . . . . . . . . . . . . . . . 1 1 . . . 1 Botnet 18 | . . . . . . 3 . 3 2 . 1 . 2 . . . . 4 2 . . . 1 Disrupt 1 | . . . . . . . . 1 . . . . . . . . . . . . . . . Skim 24 | . . . . . . 5 . 5 3 . 1 . 3 . . . . 5 1 . . . 1 Fabricators . | . . . . . . . . . . . . . . . . . . . . . . . . Repair Stations 1 | . . . . . . . . . . . . . . . . . . 1 . . . . . Patch 1 | . . . . . . . . . . . . . . . . . . 1 . . . . . Recycling Units 9 | . 1 . . . . 1 . 5 . . . . . . . . . 1 . . . . 1 Monitor 1 | . . . . . . . . 1 . . . . . . . . . . . . . . . Reject 1 | . . . . . . . . 1 . . . . . . . . . . . . . . . Recyclers 2 | . 1 . . . . . . 1 . . . . . . . . . . . . . . . Mask 5 | . . . . . . 1 . 2 . . . . . . . . . 1 . . . . 1 Scanalyzers 2 | . . . . . . 1 . . . . . . 1 . . . . . . . . . . Extract 2 | . . . . . . 1 . . . . . . 1 . . . . . . . . . . Garrison Access 1 | . . . . . . . . . . . . . . . . . . 1 . . . . . Jam 1 | . . . . . . . . . . . . . . . . . . 1 . . . . . Data Cores Recovered 1 | . . . . . . . . . . . 1 . . . . . . . . . . . . Used . | . . . . . . . . . . . . . . . . . . . . . . . . Hacking Detections 72 | . 1 3 . . . 12 2 8 9 . 6 1 7 . . . . 11 3 1 . 4 4 Full Trace Events 8 | . 1 2 . . . 2 . . . . 1 . . . . . . 1 . . . 1 . Feedback Events 1 | . 1 . . . . . . . . . . . . . . . . . . . . . . Corruption 1 | . 1 . . . . . . . . . . . . . . . . . . . . . . Feedback Blocked 1 | . . . . . . 1 . . . . . . . . . . . . . . . . . Robot Schematics Acquired 5 | . . . . . . . . . . . . . . . . 5 . . . . . . . Robots Built . | . . . . . . . . . . . . . . . . . . . . . . . . Authchips . | . . . . . . . . . . . . . . . . . . . . . . . . Time . | . . . . . . . . . . . . . . . . . . . . . . . . Total Robot Build Rating . | . . . . . . . . . . . . . . . . . . . . . . . . Part Schematics Acquired 25 | . . . . . . 5 . 1 1 . . . 7 . . 11 . . . . . . . Parts Built . | . . . . . . . . . . . . . . . . . . . . . . . . Authchips . | . . . . . . . . . . . . . . . . . . . . . . . . Time . | . . . . . . . . . . . . . . . . . . . . . . . . Total Part Build Rating . | . . . . . . . . . . . . . . . . . . . . . . . . Part Studies Acquired 18 | . . . . . . 5 . 3 4 . 1 . . . . . . 2 . . . . 3 Parts Repaired 10 | . . 2 . . . 2 . 1 2 . . . 2 . . . . 1 . . . . . Time 419 | . . 64 . . . 67 . 38 88 . . . 134 . . . . 28 . . . . . Parts Recycled . | . . . . . . . . . . . . . . . . . . . . . . . . Recycled Matter . | . . . . . . . . . . . . . . . . . . . . . . . . Retrieved Matter . | . . . . . . . . . . . . . . . . . . . . . . . . Retrieved Components 3 | . . . . . . . . 3 . . . . . . . . . . . . . . . Parts Scanalyzed 13 | . . . . . . 4 . 1 2 . . . 4 . . . . 1 . . . . 1 Part Schematics Acquired 10 | . . . . . . 4 . 1 1 . . . 4 . . . . . . . . . . Parts Damaged 1 | . . . . . . . . . . . . . . . . . . 1 . . . . . Bothacking | -11 -10 -9 -9 -9 -8 -8 -8 -8 -7 -7 -7 -7 -7 -7 -7 -7 -6 -6 -6 -6 -6 -6 -5 ------------ Run | Yrd Mat Mat Min Exi Min Mat Gar Mat Fac Was Fac Gar Fac Low Low Dat Pro Fac Ext Cet Arc Hub Fac Used RIF Installer . | . . . . . . . . . . . . . . . . . . . . . . . . Robots Hacked 3 | . 1 . . . . . . . . . . . . . . . . . 2 . . . . Non-combat 3 | . 1 . . . . . . . . . . . . . . . . . 2 . . . . Combat . | . . . . . . . . . . . . . . . . . . . . . . . . Robot Hacks Applied 5 | . 1 . . . . . . . . . . . . . . . . . 4 . . . . no_distress 4 | . 1 . . . . . . . . . . . . . . . . . 3 . . . . check_alert 1 | . . . . . . . . . . . . . . . . . . . 1 . . . . Relay Couplers Released 28 | . . . . . . . 8 . . . . 19 . . . . . 1 . . . . . Machine Destruction 28 | . . . . . . . 8 . . . . 19 . . . . . 1 . . . . . Fabnet Peak Effective % . | . . . . . . . . . . . . . . . . . . . . . . . . Robots Rewired 15 | . . . . . . . . . . . . 1 . . . . . . 14 . . . . Allies Hacked 4 | . . . . . . . . . . . . . 3 . . . . . . . . 1 . Hacks Repelled . | . . . . . . . . . . . . . . . . . . . . . . . . Allies | -11 -10 -9 -9 -9 -8 -8 -8 -8 -7 -7 -7 -7 -7 -7 -7 -7 -6 -6 -6 -6 -6 -6 -5 -------- Run | Yrd Mat Mat Min Exi Min Mat Gar Mat Fac Was Fac Gar Fac Low Low Dat Pro Fac Ext Cet Arc Hub Fac Total Allies 55 | . . . . . . . . . . 20 . 4 . . . . 1 . 25 5 . . . Largest Group 23 | . . . . . . . . . . 20 19 13 9 1 . . 1 . 20 23 20 17 . Highest-Rated Group 1152 | . . . . . . . . . . 521 494 376 354 21 . . 96 . 762 1152 1008 797 . Highest-Rated Ally 159 | . . . . . . . . . . 35 35 80 80 21 . . 96 . 159 159 150 96 . Initial Warlord ECA Mod 13 | . . . . . . . . 6 5 5 5 5 13 13 13 13 12 12 12 12 12 12 11 Total Orders 4 | . . . . . . . . . . . . . . . . . . . . . . 4 . STAY 4 | . . . . . . . . . . . . . . . . . . . . . . 4 . Ally Attacks 578 | . . . . . . . . . . . 91 67 60 . . . 25 . 161 20 12 142 . Total Damage 13055 | . . . . . . . . . . . 1776 1888 1493 . . . 1100 . 3284 386 249 2879 . Kills 101 | . . . . . . . . . . . 17 15 10 . . . 8 . 25 1 4 21 . Allies Corrupted 6 | . . . . . . . . . . . . 1 2 . . . . . . . . 3 . Allies Melted 1 | . . . . . . . . . . . . 1 . . . . . . . . . . . Intel | -11 -10 -9 -9 -9 -8 -8 -8 -8 -7 -7 -7 -7 -7 -7 -7 -7 -6 -6 -6 -6 -6 -6 -5 ------- Run | Yrd Mat Mat Min Exi Min Mat Gar Mat Fac Was Fac Gar Fac Low Low Dat Pro Fac Ext Cet Arc Hub Fac Active Infowar (turns) 2950 | 2 401 119 . . . 1643 248 . . . . . 1 . . . . . . . . . 536 Optics 728 | . . . . . . 728 . . . . . . . . . . . . . . . . . Terrain 522 | 2 401 119 . . . . . . . . . . . . . . . . . . . . . Structural 536 | . . . . . . . . . . . . . . . . . . . . . . . 536 Traps 1163 | . . . . . . 915 248 . . . . . . . . . . . . . . . . ECM 1 | . . . . . . . . . . . . . 1 . . . . . . . . . . Robot Analysis Total 5 | . . . . . . 1 . 2 . . . . 1 . . . . . 1 . . . . Derelict Logs Recovered 8 | . . . 1 . . . . . . . . . . 2 3 . 2 . . . . . . Drone Launches . | . . . . . . . . . . . . . . . . . . . . . . . . Drone Recoveries . | . . . . . . . . . . . . . . . . . . . . . . . . Exploration | -11 -10 -9 -9 -9 -8 -8 -8 -8 -7 -7 -7 -7 -7 -7 -7 -7 -6 -6 -6 -6 -6 -6 -5 ------------- Run | Yrd Mat Mat Min Exi Min Mat Gar Mat Fac Was Fac Gar Fac Low Low Dat Pro Fac Ext Cet Arc Hub Fac Turns Passed 24670 | 165 401 1146 398 306 105 1808 1950 1062 1819 232 793 1109 1208 1332 1467 140 1195 2664 2586 487 287 1089 921 Spaces Moved 13364 | 83 213 582 251 259 80 950 878 647 1282 174 578 695 697 629 898 88 699 1191 1233 197 108 541 411 Core . | . . . . . . . . . . . . . . . . . . . . . . . . Treads 6810 | . . 68 197 . . . 577 . . . . . 84 629 898 88 699 1191 1233 197 108 541 300 Legs 213 | 83 130 . . . . . . . . . . . . . . . . . . . . . . Wheels 6341 | . 83 514 54 259 80 950 301 647 1282 174 578 695 613 . . . . . . . . . 111 Hover . | . . . . . . . . . . . . . . . . . . . . . . . . Flight . | . . . . . . . . . . . . . . . . . . . . . . . . Fastest Speed 93 | 120 100 100 105 115 115 100 105 110 93 105 120 120 120 160 160 160 160 160 160 160 160 160 140 Average Speed 140 | 120 114 122 148 115 115 109 180 122 106 114 120 120 124 160 160 160 160 160 160 160 160 160 162 Slowest Speed 240 | 120 190 240 160 115 115 120 238 130 110 120 120 120 240 160 160 160 240 240 160 160 160 160 190 Overloaded Moves . | . . . . . . . . . . . . . . . . . . . . . . . . Propulsion Burnouts . | . . . . . . . . . . . . . . . . . . . . . . . . Robots Hopped . | . . . . . . . . . . . . . . . . . . . . . . . . Potential Cave-ins 11 | . . . 4 . . . . . . . . . . . . . . 7 . . . . . Cave-ins Triggered 1 | . . . . . . . . . 1 . . . . . . . . . . . . . . Exploration Rate (%) 57 | 4 28 50 49 69 22 74 76 54 36 91 25 86 29 70 89 75 83 31 96 67 90 63 14 Regions Visited 23 Branch Regions 11 Pre-discovered Areas 4 | . . . . 1 . 1 . . . . . . . 1 . 1 . . . . . . . Known Exits Taken 9 | . . 1 1 1 1 1 . 1 . . 1 . 1 . . . . 1 . . . . . Unknown Exits Taken 10 | 1 1 . . . . . . . . . . . . 1 1 1 1 . 1 1 1 1 . Scrap Searched 18 | . . . 1 . . . . . . . . . . 3 13 . 1 . . . . . . Spaces Dug 158 | . . 22 37 . . 20 9 7 18 . . . 4 . . . . 18 4 . . 12 7 Terrain Destroyed 828 | . . 50 66 . . 113 21 18 53 . 3 105 27 . . . . 102 18 1 3 201 47 Melee 58 | . . 4 . . . 7 4 7 18 . . . 4 . . . . 4 3 . . . 7 Projectile 120 | . . . . . . . . . 1 . . . . . . . . 74 10 1 3 31 . AOE 649 | . . 46 66 . . 106 17 11 33 . 3 105 23 . . . . 24 5 . . 170 40 Terrain Rammed . | . . . . . . . . . . . . . . . . . . . . . . . . Walls Destroyed . | . . . . . . . . . . . . . . . . . . . . . . . . Machines Disabled . | . . . . . . . . . . . . . . . . . . . . . . . . Actions | -11 -10 -9 -9 -9 -8 -8 -8 -8 -7 -7 -7 -7 -7 -7 -7 -7 -6 -6 -6 -6 -6 -6 -5 --------- Run | Yrd Mat Mat Min Exi Min Mat Gar Mat Fac Was Fac Gar Fac Low Low Dat Pro Fac Ext Cet Arc Hub Fac Total 17537 | 110 333 854 264 270 86 1514 1119 842 1609 207 634 868 957 923 910 87 736 1713 1733 363 181 648 576 Wait 2427 | 2 30 146 1 . . 375 120 133 165 11 23 81 151 268 2 . 12 288 346 140 30 28 75 Move 13340 | 82 212 581 250 258 79 949 875 646 1282 173 577 694 696 628 897 87 698 1190 1232 196 107 540 411 Hop . | . . . . . . . . . . . . . . . . . . . . . . . . Pick Up 146 | 2 6 9 1 4 . 17 4 6 21 5 2 1 20 3 1 . 2 16 10 6 3 . 7 Fast Attach 76 | . 4 9 . . . 12 2 1 8 3 1 . 7 2 . . 3 5 3 3 . 1 12 Attach 58 | 1 . . . . 2 3 2 . 8 . . . 8 . . . 1 20 4 . . 5 4 Detach 21 | . . . . 2 . 2 2 . 4 . . . 3 . . . . 4 2 . . . 2 Swap 180 | 2 6 16 4 1 2 30 21 6 23 3 6 3 18 4 3 . 1 11 7 . 2 7 4 Drop 150 | . 7 9 . 5 . 14 7 7 24 10 5 2 15 6 1 . 5 15 6 9 3 . . Fire 829 | 21 19 48 8 . . 86 75 30 45 2 20 48 35 11 6 . 14 154 60 9 36 65 37 Melee 201 | . 1 34 . . 3 26 8 13 29 . . . 4 . . . . 5 54 . . . 24 Ram . | . . . . . . . . . . . . . . . . . . . . . . . . Kick . | . . . . . . . . . . . . . . . . . . . . . . . . Crush 9 | . . 2 . . . . . . . . . . . . . . . 5 . . . 2 . Escape Stasis 27 | . . . . . . . 3 . . . . 24 . . . . . . . . . . . Rewire 18 | . . . . . . . . . . . . 15 . . . . . . 3 . . . . Trap 54 | . 48 . . . . . . . . . . . . . . . . . 6 . . . . Miscellaneous 1 | . . . . . . . . . . . . . . 1 . . . . . . . . . Route ------- -11/Scrapyard -10/Materials -9/Materials (discovered 2 exits: *Mat / *Min) -9/Mines (discovered 2 exits: *Mat / *Exi) -9/Exiles -8/Mines -8/Materials (discovered 3 exits: *Fac x2 / Gar) -8/Garrison (discovered 3 exits: *Mat x3) -8/Materials (discovered 3 exits: *Fac x3) -7/Factory (discovered 5 exits: *Fac / *Sto x2 / *Low x2) -7/Waste -7/Factory (discovered 2 exits: *Sto / Gar) -7/Garrison (discovered 3 exits: *Fac x3) -7/Factory (discovered 5 exits: *Fac / Sto x2 / *Low x2) -7/Lower Caves -7/Lower Caves -7/Data Miner -6/Proximity Caves -6/Factory (discovered 5 exits: *Fac x2 / Low / *Ext x2) -6/Extension (discovered 2 exits: *Fac / *Cet) -6/Cetus (discovered 2 exits: *Fac / *Arc) -6/Archives (discovered 3 exits: *Fac / *Hub x2) -6/Hub_04(d) -5/Factory History --------- Turn | Location | Event 15 | -11/Scrapyard | Discovered new exit (range 3) 166 | -11/Scrapyard | Entered Materials 325 | -10/Materials | Build established: Mutant 429 | -10/Materials | Discovered new exit (range 15) 567 | -10/Materials | Entered another Materials area 567 | -9/Materials | Evolved 2 slots: Utility x2 904 | -9/Materials | Discovered new exit (range 8) 948 | -9/Materials | Discovered new exit (range 15) 1179 | -9/Materials | Repaired Hvy. Assault Rifle 1301 | -9/Materials | Core integrity fell below 50% 1395 | -9/Materials | Repaired Hrd. Light Armor Plating 1576 | -9/Materials | Identified exit to Mines 1713 | -9/Materials | Entered Mines 1720 | -9/Mines | Received a Rocket Launcher from a helpful Derelict 1818 | -9/Mines | Discovered new exit (range 15) 1839 | -9/Mines | Identified exit to Materials 1871 | -9/Mines | Deemed a non-threat by the Exiles lab entrance 1871 | -9/Mines | Discovered new exit (range 5) 1875 | -9/Mines | Identified exit to Exiles 2027 | -9/Mines | Assembled infested the area 2027 | -9/Mines | A weapon hastily lodged in a ceiling crevice suddenly fell to the ground 2111 | -9/Mines | Entered Exiles 2150 | -9/Exiles | Met 8R-AWN 2168 | -9/Exiles | Met EX-HEX 2211 | -9/Exiles | Met EX-DEC 2251 | -9/Exiles | Met EX-BIN 2268 | -9/Exiles | Aligned with FarCom system 2270 | -9/Exiles | Given EX-Vault access code 2297 | -9/Exiles | Opened EX-Vault 2305 | -9/Exiles | Found Trap Reconfigurator 2329 | -9/Exiles | Warned to stay clear of 0b10 Research branches 2367 | -9/Exiles | Learned location of Zion (-6) 2406 | -9/Exiles | Discovered new exit (range 11) 2416 | -9/Exiles | Identified exit to Mines 2417 | -9/Exiles | Left Exiles lab with Trap Reconfigurator 2417 | -9/Exiles | Entered Mines 2421 | -8/Mines | Core integrity fell below 20% 2514 | -8/Mines | Discovered exit to Materials (range 8) 2522 | -8/Mines | Entered Materials 2522 | -8/Materials | Evolved 2 slots: Propulsion x1, Utility x1 2960 | -8/Materials | Discovered new exit (range 6) 2966 | -8/Materials | Identified exit to Factory 3020 | -8/Materials | Repaired Hrd. Light Armor Plating 3355 | -8/Materials | Repaired Cld. Ion Engine 3926 | -8/Materials | Discovered exit to Factory (range 12) 4028 | -8/Materials | Identified exit to Garrison 4042 | -8/Materials | Central database locked down 4053 | -8/Materials | Garrison activated, responded to threat 4255 | -8/Materials | Learned location of Recycling (-7) 4310 | -8/Materials | Learned location of 1 exit from Recycling 4330 | -8/Materials | Entered Garrison 4401 | -8/Garrison | Garrison Relay disabled 4462 | -8/Garrison | Triggered checkpoint 4540 | -8/Garrison | Triggered checkpoint 4712 | -8/Garrison | Triggered checkpoint 4876 | -8/Garrison | Discovered new exit (range 12) 4942 | -8/Garrison | Triggered checkpoint 5127 | -8/Garrison | Garrison Relay disabled 5159 | -8/Garrison | Discovered new exit (range 85) 5159 | -8/Garrison | Discovered new exit (range 30) 5159 | -8/Garrison | Discovered new exit (range 56) 5208 | -8/Garrison | Build established: Hacker-Mutant 5780 | -8/Garrison | Attempted to access garrison exit controls, blocked by remote lockdown 5962 | -8/Garrison | Triggered checkpoint 6113 | -8/Garrison | Attempted to access garrison exit controls, blocked by remote lockdown 6196 | -8/Garrison | Triggered checkpoint 6230 | -8/Garrison | Triggered checkpoint 6280 | -8/Garrison | Entered Materials 6666 | -8/Materials | Discovered exit to Factory (range 13) 6807 | -8/Materials | Repaired EM Pulse Cannon+ 7149 | -8/Materials | Learned 8 Factory zone layouts 7179 | -8/Materials | Learned Factory trap positions 7198 | -8/Materials | Learned Factory trap positions 7228 | -8/Materials | Learned location of 1 exit from Storage 7281 | -8/Materials | Central database locked down 7342 | -8/Materials | Entered Factory 7342 | -7/Factory | Evolved 2 slots: Propulsion x1, Weapon x1 7344 | -7/Factory | Loaded intel: 98 trap records 7548 | -7/Factory | Identified exit to Storage 7548 | -7/Factory | Identified exit to Lower Caves 7576 | -7/Factory | Found Prototype Launcher 7576 | -7/Factory | Identified Rocket Array 7778 | -7/Factory | Watched by a mysterious "MATRIX" hacker. 8119 | -7/Factory | Build established: Hacker-Skirmisher 8302 | -7/Factory | Discovered new exit (range 13) 8471 | -7/Factory | Cargo convoy interrupted 8768 | -7/Factory | Crushed by falling debris 8886 | -7/Factory | Repaired Arm. Huge Wheel+ 8932 | -7/Factory | Repaired Imp. Medium Armor Plating 9161 | -7/Factory | Sucked down chute 9161 | -7/Factory | Entered Waste 9162 | -7/Waste | Joined by Warlord forces that had cleared the area 9353 | -7/Waste | Discovered new exit (range 13) 9393 | -7/Waste | Entered Factory 9393 | -7/Factory | Accompanied by 19 allies 9394 | -7/Factory | Loaded intel: 110 trap records 9439 | -7/Factory | Build established: Mutant 9714 | -7/Factory | Garrison activated, responded to threat 9791 | -7/Factory | Discovered exit to Storage (range 15) 9842 | -7/Factory | Build established: Tank 10176 | -7/Factory | Identified exit to Garrison 10186 | -7/Factory | Entered Garrison 10186 | -7/Garrison | Accompanied by 13 allies 10282 | -7/Garrison | Triggered checkpoint 10320 | -7/Garrison | Triggered checkpoint 10337 | -7/Garrison | Garrison Relay disabled 10399 | -7/Garrison | Phase Generator disabled 10451 | -7/Garrison | Triggered checkpoint 10473 | -7/Garrison | Triggered checkpoint 10482 | -7/Garrison | Triggered checkpoint 10500 | -7/Garrison | Triggered checkpoint 10590 | -7/Garrison | Triggered checkpoint 10639 | -7/Garrison | Rescued a captive Derelict 10652 | -7/Garrison | Garrison Relay disabled 10663 | -7/Garrison | Garrison Relay disabled 10685 | -7/Garrison | Discovered new exit (range 8) 10786 | -7/Garrison | Lost 4 allies 10990 | -7/Garrison | Garrison Relay disabled 11008 | -7/Garrison | Discovered new exit (range 10) 11117 | -7/Garrison | Discovered new exit (range 12) 11147 | -7/Garrison | Garrison Relay disabled 11180 | -7/Garrison | Triggered checkpoint 11181 | -7/Garrison | Found embedded Infiltrators 11295 | -7/Garrison | Entered Factory 11295 | -7/Factory | Accompanied by 9 allies 11784 | -7/Factory | Repaired Broken Cmb. Gravmag System 11848 | -7/Factory | Repaired Hvy. Treads 11864 | -7/Factory | Discovered new exit (range 16) 11923 | -7/Factory | Build established: Hacker-Tank 12061 | -7/Factory | Core integrity fell below 50% 12261 | -7/Factory | Cargo convoy interrupted 12272 | -7/Factory | P-60 Hacker assimilated allied Guardian 4a 12331 | -7/Factory | Lost 3 allies 12348 | -7/Factory | Destroyed 11 combat bots 12352 | -7/Factory | Lost 7 parts (1n3u3w) 12366 | -7/Factory | Found Prototype Launcher 12366 | -7/Factory | Identified Com. Tesla Bomb Launcher 12376 | -7/Factory | Found Com. Tesla Bomb Launcher 12503 | -7/Factory | Entered Lower Caves 12503 | -7/Lower Caves | Accompanied by 1 ally 12518 | -7/Lower Caves | Learned Factory garrison access intel 12583 | -7/Lower Caves | Build established: Tank 12640 | -7/Lower Caves | Met a Warlord Commander 12641 | -7/Lower Caves | Learned location of Warlord (-4) 12642 | -7/Lower Caves | Warlord Commander delivered Encrypted Comm Array 12673 | -7/Lower Caves | Found Unknown Device 12673 | -7/Lower Caves | Identified Encrypted Comm Array 12986 | -7/Lower Caves | Attracted the attention of an 0b10 checkpoint 13045 | -7/Lower Caves | Learned Factory terminal intel 13181 | -7/Lower Caves | Discovered new exit (range 8) 13289 | -7/Lower Caves | Found DRS Beacon 13303 | -7/Lower Caves | Activated DRS Beacon 13835 | -7/Lower Caves | Entered another Lower Caves area 14275 | -7/Lower Caves | Encountered a Warlord checkpoint 14323 | -7/Lower Caves | Attracted the attention of an 0b10 checkpoint 14333 | -7/Lower Caves | Discovered new exit (range 9) 14348 | -7/Lower Caves | Learned Factory trap positions 14782 | -7/Lower Caves | Learned Factory garrison access intel 15031 | -7/Lower Caves | Learned Factory machine intel 15302 | -7/Lower Caves | Entered Data Miner 15302 | -7/Data Miner | Discovered new exit (range 6) 15333 | -7/Data Miner | Met Data Miner 15381 | -7/Data Miner | Learned location of Section 7 (-2) 15381 | -7/Data Miner | Acquired the access code to Warlord's prototype stash 15406 | -7/Data Miner | Received God Mode back door access code from Data Miner 15442 | -7/Data Miner | Entered Proximity Caves 15465 | -6/Proximity Caves | Escorted by Enhanced Grunt 15596 | -6/Proximity Caves | Learned 4 Factory zone layouts 15925 | -6/Proximity Caves | Spotted B-75 Beast 15936 | -6/Proximity Caves | Allies destroyed B-75 Beast 16358 | -6/Proximity Caves | Attracted the attention of an 0b10 checkpoint 16631 | -6/Proximity Caves | Discovered new exit (range 5) 16637 | -6/Proximity Caves | Entered Factory 16637 | -6/Factory | Evolved 2 slots: Utility x2 16638 | -6/Factory | Identified exit to Lower Caves 16638 | -6/Factory | Identified exit to Extension 16640 | -6/Factory | Loaded intel: 76 trap records 16641 | -6/Factory | Loaded intel: 251 machine locations 16642 | -6/Factory | Loaded intel: 28 terminal locations 16643 | -6/Factory | Loaded intel: 4 garrison access locations 16749 | -6/Factory | Spotted B-75 Beast 16765 | -6/Factory | Garrison activated, responded to threat 17096 | -6/Factory | Build established: Hacker-Mutant 17412 | -6/Factory | Build established: Hacker-Tank 17468 | -6/Factory | Discovered new exit (range 8) 17961 | -6/Factory | Garrison activated, responded to threat 18387 | -6/Factory | First assault squad dispatched 18404 | -6/Factory | Incoming assault squad redirected 18451 | -6/Factory | Repaired Hvy. Treads 18605 | -6/Factory | Discovered new exit (range 13) 18654 | -6/Factory | Build established: Scavenger-Tank 18664 | -6/Factory | Lost 3 parts (1n2u) 18756 | -6/Factory | Incoming assault squad redirected 18974 | -6/Factory | Targeted by mysterious "MATRIX" hacker. 19301 | -6/Factory | Entered Extension 19393 | -6/Extension | Rescued A7 19466 | -6/Extension | Rescued a captive Derelict 19496 | -6/Extension | Rescued a captive Derelict 19846 | -6/Extension | Build established: Scavenger-Mutant 20351 | -6/Extension | First assault squad dispatched 20366 | -6/Extension | Incoming assault squad redirected 20610 | -6/Extension | Spotted B-75 Beast 20623 | -6/Extension | Allies destroyed B-75 Beast 20653 | -6/Extension | Destroyed B-75 Beast 20681 | -6/Extension | Lost 5 allies 20936 | -6/Extension | Build established: Hacker-Tank 21049 | -6/Extension | Discovered new exit (range 16) 21051 | -6/Extension | Discovered new exit (range 15) 21111 | -6/Extension | Rescued a captive Derelict 21148 | -6/Extension | Rescued a captive Derelict 21149 | -6/Extension | Rescued a captive Derelict 21166 | -6/Extension | Rescued a captive Derelict 21173 | -6/Extension | Rescued a captive Derelict 21309 | -6/Extension | Rescued a captive Derelict 21608 | -6/Extension | Rescued a captive Derelict 21608 | -6/Extension | Rescued a captive Derelict 21726 | -6/Extension | Disrupted transfer network 21887 | -6/Extension | Entered Cetus 21887 | -6/Cetus | Accompanied by 19 allies (A7) 21892 | -6/Cetus | Acquired a Cetus Manufacturing Module code from A7 21908 | -6/Cetus | Spotted Cetus Guard 21908 | -6/Cetus | Spotted Cetus Guard 21913 | -6/Cetus | Spotted Cetus Guard 21914 | -6/Cetus | Destroyed Cetus Guard 21916 | -6/Cetus | Destroyed Cetus Guard 21916 | -6/Cetus | Spotted Cetus Guard 21917 | -6/Cetus | Destroyed Cetus Guard 21917 | -6/Cetus | Allies destroyed Cetus Guard 21982 | -6/Cetus | Build established: Commander-Tank 22024 | -6/Cetus | Started Cetus Manufacturing Module 22049 | -6/Cetus | Manufactured an Enhanced Grunt 22067 | -6/Cetus | Escorted A7 to Cetus Mainframe 22074 | -6/Cetus | Manufactured an Enhanced Grunt 22093 | -6/Cetus | Discovered new exit (range 15) 22099 | -6/Cetus | Manufactured an Enhanced Grunt 22122 | -6/Cetus | Spotted Cetus Guard 22123 | -6/Cetus | Spotted Cetus Guard 22124 | -6/Cetus | Manufactured an Enhanced Grunt 22127 | -6/Cetus | Spotted Cetus Guard 22129 | -6/Cetus | Destroyed Cetus Guard 22130 | -6/Cetus | Destroyed Cetus Guard 22130 | -6/Cetus | Spotted Cetus Guard 22131 | -6/Cetus | Destroyed Cetus Guard 22134 | -6/Cetus | Destroyed Cetus Guard 22144 | -6/Cetus | Discovered new exit (range 15) 22149 | -6/Cetus | Manufactured an Enhanced Grunt 22152 | -6/Cetus | Met Revision 17 22374 | -6/Cetus | Entered Archives 22374 | -6/Archives | Accompanied by 20 allies (A7) 22379 | -6/Archives | Received a hacking code to weaken MAIN.C 22422 | -6/Archives | Unable to access archive contents 22499 | -6/Archives | Discovered new exit (range 13) 22552 | -6/Archives | Discovered new exit (range 16) 22599 | -6/Archives | Discovered new exit (range 16) 22661 | -6/Archives | Entered Hub_04(d) 22661 | -6/Hub_04(d) | Accompanied by 17 allies 22902 | -6/Hub_04(d) | Discovered new exit (range 9) 22904 | -6/Hub_04(d) | Garrison activated, responded to threat 23450 | -6/Hub_04(d) | Build established: Scavenger-Tank 23533 | -6/Hub_04(d) | Network Hub disabled 23571 | -6/Hub_04(d) | Spotted Lightning 23575 | -6/Hub_04(d) | Spotted Lightning 23577 | -6/Hub_04(d) | Core integrity fell below 50% 23577 | -6/Hub_04(d) | Spotted Lightning 23588 | -6/Hub_04(d) | System corruption reached 10% 23621 | -6/Hub_04(d) | Network Hub disabled 23632 | -6/Hub_04(d) | System corruption reached 30% 23711 | -6/Hub_04(d) | Core integrity fell below 20% 23750 | -6/Hub_04(d) | Entered Factory 23750 | -5/Factory | Evolved 2 slots: Propulsion x2 23751 | -5/Factory | Loaded intel: 4 garrison access locations 23776 | -5/Factory | Lost 12 parts (1p2n5u4w) 24285 | -5/Factory | Build established: Scavenger-Mutant 24519 | -5/Factory | Found Prototype Launcher 24650 | -5/Factory | First assault squad dispatched 24671 | -5/Factory | Self-destructed Last Messages --------------- 24619_ Acquired 10 matter. 24644_ U-05 Engineer builds a Wall. 24645_ K-01 Serf cleans the Assembly Bed. 24649_ System corrupted: Substantial component data lost. 24649_ K-01 Serf cleans the Assembly Bed. 24650_ ALERT: Unidentified disturbance in Zone 5Q, assault force dispatched. 24656_ K-01 Serf cleans the Assembly Bed. 24659_ Triggered Alarm Trap. 24659_ An alarm sounds. 24659_ ALERT: Alarm triggered, dispatching investigation squad. 24660_ ALERT: Hostiles spotted, dispatching reinforcements to Terminal F005. 24661_ U-05 Engineer lays Concrete. 24661_ K-01 Serf cleans the Assembly Bed. 24670_ Slug penetrates Assembly Bed. 24670_ Centrium Heavy Treads destroyed. 24670_ Slug penetrates Assembly Bed. Map ----- +----------------------------------------------------+ | | | | | | | | | ########?#################???????????????????????? | | ##?# #???????????????????????? | | " ##?# #???????????????????????? | | " ##?# #???????????????????????? | | " ##?# % #???????????????????????? | | " ##?# #???????????????????????? | | ##?# #???????????????????????? | | ##?# #???????????????????????? | | !##?# #???????????????????????? | | #+######?# #???????????????????????? | | ##### % #???????????????????????? | | ############+##########?????????????????????? | | w ?????????????????? | | %= % ?? ??????????????? | | ! ? ???????????????? | | ##/###################+####h????????????????? | | # ## u # ????????????????? | | ## "" ## k"""""" #! ?????????????????? | | ## T" ## [ """"""gh ???????????????????? | | ## "" ## """""" #????????????????????? | | ## ## """""" #????????????????????? | | ## """ ## @g #????????????????????? | | ## """ ## """""" #????????????????????? | | ## """ ## """""" #????????????????????? | | ## ## """""" #????????????????????? | | ############ """""" #????????????????????? | | ############ #????????????????????? | | ##?????????# ! #????????????????????? | | ##?????????############?#????????????????????? | | ##???????????????????????????????????????????? | | ##???????????????????????????????????????????? | | ##???????????????????????????????????????????? | | ##???????????????????????????????????????????? | | ##???????????????????????????????????????????? | | ##???????????????????????????????????????????? | | ##???????????????????????????????????????????? | | ?? # ???????????????Y???????????????????????????? | | ? # ???????????????????????????????????????????? | | # ???????????????????????????????????????????? | | # ???????????????????????????????????????????? | | # ???????????????????????????????????????????? | | + ???????????????????????????????????????????? | | # ???????????????????????????????????????????? | | # ???????????????????????????????????????????? | | # ??????????????????????????????????????? | | #+#########??????????????????????????????????????? | +----------------------------------------------------+ Best States ------------- Heat Dissipation 95 Energy Generation 23 Energy Capacity 800 Matter Stores 300 Matter Capacity 300 Sight Range 20 Terrain Scan Range 16 Terrain Scan Density 85 Armor Coverage 1200 Weapon Shielding 33 Evasion (%) 55 Targeting Accuracy 14 Melee Accuracy 8 Recoil Reduction 4 Matter Filtering 50 Particle Charging 20 Kinecelleration 30 Salvage Targeting 3 Offensive Hacking 10 Defensive Hacking 24 Item Schematics ----------------- Imp. Light Cannon | -8/Materials | Extracted Adv. Treads | -8/Materials | Scanalyzed Hacking Suite | -8/Materials | Scanalyzed Lrg. Storage Unit | -8/Materials | Scanalyzed Adv. Beam Rifle | -8/Materials | Scanalyzed Adv. Targeting Computer | -8/Materials | Scanalyzed System Shield | -7/Factory | Scanalyzed Adv. Cooling System | -7/Factory | Scanalyzed Hvy. Treads | -7/Factory | Scanalyzed Hrd. Heavy Armor Plating | -7/Factory | Scanalyzed Cmb. Gravmag System | -7/Factory | Scanalyzed Imp. Trap Extractor | -7/Factory | Extracted Com. Matter Pod | -7/Factory | Extracted Aerolev Unit | -7/Factory | Extracted Combat Drone Bay | -7/Data Miner | Free Lgt. Regenerative Plating | -7/Data Miner | Free Cld. Cesium-ion Thruster | -7/Data Miner | Free Gravity Neutralizer | -7/Data Miner | Free Ion Burst Cannon | -7/Data Miner | Free Adv. Salvage Targeting Computer | -7/Data Miner | Free Antigrav System | -7/Data Miner | Free Disruptor Cannon | -7/Data Miner | Free Adv. Recoil Stabilizer | -7/Data Miner | Free Imp. Component Analysis Suite | -7/Data Miner | Free Centrium Wheel | -7/Data Miner | Free Robot Schematics ------------------ G-50 Soldier | -7/Data Miner | Free B-48 Gladiator | -7/Data Miner | Free L-41 Fighter | -7/Data Miner | Free H-66 Slayer | -7/Data Miner | Free M-22 Extractor | -7/Data Miner | Free Fabricated ------------ Nothing Repaired ---------- Hvy. Assault Rifle | 67% | -9/Materials Hrd. Light Armor Plating | 65% | -9/Materials Hrd. Light Armor Plating | 35% | -8/Materials Cld. Ion Engine | 53% | -8/Materials EM Pulse Cannon | 18% | -8/Materials Arm. Huge Wheel | 4% | -7/Factory Imp. Medium Armor Plating | 7% | -7/Factory Cmb. Gravmag System | 12% | -7/Factory | Broken Hvy. Treads | 38% | -7/Factory Hvy. Treads | 17% | -6/Factory Studied --------- Carbon-fiber Leg | -8/Materials | Hacked Hvy. Hammer | -8/Materials | Hacked Com. Wheel | -8/Materials | Hacked Titanium Leg | -8/Materials | Hacked Rocket Launcher | -8/Materials | Hacked Imp. Datajack | -8/Materials | Hacked Adv. Treads | -8/Materials | Hacked EM Pulse Cannon | -8/Materials | Hacked Gauss Rifle | -7/Factory | Hacked Arm. Huge Wheel | -7/Factory | Hacked Hyb. Deuterium Engine | -7/Factory | Hacked Arm. Treads | -7/Factory | Hacked Gatling Laser | -7/Factory | Hacked Hvy. Treads | -6/Factory | Hacked Imp. Medium Treads | -6/Factory | Hacked Proton Cannon | -5/Factory | Hacked Wheel | -5/Factory | Hacked Arm. Medium Treads | -5/Factory | Hacked Alien Tech Used ----------------- None Achievements -------------- A Problem For Future Me All Kinds Of Bad News Bumper Bots Construction Begets Destruction DATA ERROR: Steam Global Achievement% Ew, Corruption For Emergencies Only Ghost 'Em Heavy Suspicion I Have A Map? I Like You, Cogmind Immobile And Lovin' It Item+ Jackpot Junior Dev My Business Is Booming Myspace Organ Harvest Overwhelming Professional Mechanic Sixth Sense Spot Them First The Better Part Of Valor There's More Where That Came From Throw Away The Key Tune-up Challenges ------------ None Game ------ Seed MiniGravitonOptics Manual? 0 Play Time 03:44:44 Cumulative 315.7 hours Start 2026.03.05 @ 14:48:24 End 2026.03.07 @ 09:03:40 Sessions 13 Manual Loads 0 Difficulty Rogue Special Mode None Game No. 266 Rogue 230 Adventurer 36 Explorer 0 Win Type - Total 4 Types 2/0/0/1/0/0/0/1/0/0 Lore% 58 Gallery% 61 Achievement% 38 Wizard Run 0 Options --------- Layout 1 ASCII 0 Keyboard 0 Movement Numpad Keybinds 0 Fullscreen 1 Font 48/Smallcaps Map View 50x35 Zoom Use 0% Tactical HUD 1 Map Filters NONE Filters NONE Steam 1 RUN: d36e4647-f730-47d2-9f23-08ccf89bb3b6